[Event "*** MasterClass Titled Tuesday Blitz"]
[Site "Chess.com"]
[Date "2017.07.04"]
[Round "1"]
[White "BigBoss2702"]
[Black "Msb2"]
[Result "0-1"]
[WhiteElo "2259"]
[BlackElo "2527"]
[TimeControl "180+2"]
[EndTime "13:10:54 PDT"]
[Termination "Msb2 won by resignation"]

1. d4 {[%clk 0:01:55.9]} 1... Nf6 {[%clk 0:02:59.7]} 2. c4 {[%clk 0:01:56.7]}
2... e6 {[%clk 0:03:01.1]} 3. Nf3 {[%clk 0:01:58.3]} 3... d5 {[%clk 0:03:02]} 4.
Nc3 {[%clk 0:01:59.3]} 4... Bb4 {[%clk 0:03:01.8]} 5. Bg5 {[%clk 0:01:58.7]}
5... h6 {[%clk 0:03:01.5]} 6. Bxf6 {[%clk 0:01:59]} 6... Qxf6 {[%clk 0:03:03.4]}
7. e3 {[%clk 0:02:00.5]} 7... O-O {[%clk 0:03:03.3]} 8. Be2 {[%clk 0:02:00.4]}
8... dxc4 {[%clk 0:03:04.1]} 9. Bxc4 {[%clk 0:02:01.4]} 9... c5 {[%clk
0:03:05.1]} 10. O-O {[%clk 0:02:02]} 10... cxd4 {[%clk 0:03:05.8]} 11. Nxd4
{[%clk 0:02:02.1]} 11... Bd7 {[%clk 0:03:06.7]} 12. Rc1 {[%clk 0:02:01.1]} 12...
Nc6 {[%clk 0:03:07.4]} 13. Ne4 {[%clk 0:01:59.6]} 13... Qe7 {[%clk 0:03:08.4]}
14. a3 {[%clk 0:01:57.7]} 14... Ba5 {[%clk 0:03:07.8]} 15. b4 {[%clk 0:01:58.3]}
15... Bb6 {[%clk 0:03:07.5]} 16. Nb5 {[%clk 0:01:49.3]} 16... Rfd8 {[%clk
0:03:06.5]} 17. Qe2 {[%clk 0:01:48.1]} 17... a6 {[%clk 0:03:04.5]} 18. Nbc3
{[%clk 0:01:45.2]} 18... Ne5 {[%clk 0:03:04.3]} 19. Bb3 {[%clk 0:01:43.7]} 19...
Be8 {[%clk 0:03:02.4]} 20. Rfd1 {[%clk 0:01:44.3]} 20... Rxd1+ {[%clk
0:03:02.4]} 21. Rxd1 {[%clk 0:01:44.7]} 21... Rd8 {[%clk 0:03:04.3]} 22. Na4
{[%clk 0:01:40.5]} 22... Bc7 {[%clk 0:02:55]} 23. Nac5 {[%clk 0:01:38.7]} 23...
Bc6 {[%clk 0:02:54.9]} 24. f4 {[%clk 0:01:19.8]} 24... Nd7 {[%clk 0:02:44.1]}
25. Nxd7 {[%clk 0:01:17.9]} 25... Rxd7 {[%clk 0:02:37.6]} 26. Nc5 {[%clk
0:01:17.9]} 26... Rxd1+ {[%clk 0:02:36.1]} 27. Qxd1 {[%clk 0:01:19.8]} 27... Bb6
{[%clk 0:02:37.5]} 28. Qd4 {[%clk 0:01:16.1]} 28... Qd8 {[%clk 0:02:34.2]} 29.
Qxd8+ {[%clk 0:01:16.5]} 29... Bxd8 {[%clk 0:02:36.1]} 30. Kf2 {[%clk 0:01:16]}
30... Kf8 {[%clk 0:02:34.2]} 31. g3 {[%clk 0:01:11.8]} 31... Ke7 {[%clk
0:02:34.6]} 32. Bc2 {[%clk 0:01:10.2]} 32... f5 {[%clk 0:02:31.8]} 33. Ke2
{[%clk 0:01:09.7]} 33... Kd6 {[%clk 0:02:23.3]} 34. e4 {[%clk 0:01:09.9]} 34...
b6 {[%clk 0:02:16.7]} 35. e5+ {[%clk 0:01:09.8]} 35... Ke7 {[%clk 0:02:11.7]}
36. Nxa6 {[%clk 0:01:07.3]} 36... Bb7 {[%clk 0:02:12.1]} 37. Bd3 {[%clk
0:01:07]} 37... Kd7 {[%clk 0:02:10.7]} 38. b5 {[%clk 0:01:04.7]} 38... Be7
{[%clk 0:02:08.8]} 39. Nb4 {[%clk 0:01:04.2]} 39... Bc5 {[%clk 0:02:09.4]} 40.
Bc4 {[%clk 0:00:40.6]} 40... g5 {[%clk 0:02:09.2]} 41. Nc6 {[%clk 0:00:37.5]}
41... g4 {[%clk 0:01:57.1]} 42. a4 {[%clk 0:00:36.9]} 42... h5 {[%clk
0:01:56.2]} 43. Kf1 {[%clk 0:00:33.9]} 43... Be3 {[%clk 0:01:43.5]} 44. Bxe6+
{[%clk 0:00:32.8]} 44... Kxe6 {[%clk 0:01:20.9]} 45. Nd8+ {[%clk 0:00:33.8]}
45... Kd5 {[%clk 0:01:22.8]} 46. Nxb7 {[%clk 0:00:34.7]} 46... h4 {[%clk
0:01:24.7]} 47. Nd8 {[%clk 0:00:31.2]} 47... h3 {[%clk 0:01:22]} 48. Nc6 {[%clk
0:00:22.2]} 48... Bc5 {[%clk 0:01:19]} 49. a5 {[%clk 0:00:20.9]} 49... bxa5
{[%clk 0:01:18.2]} 50. Nxa5 {[%clk 0:00:22.8]} 50... Ke4 {[%clk 0:01:19.8]} 51.
Nc6 {[%clk 0:00:23.4]} 51... Kd5 {[%clk 0:01:09]} 52. Na5 {[%clk 0:00:24.4]}
52... Bb6 {[%clk 0:00:51.2]} 53. Nc6 {[%clk 0:00:25.3]} 53... Be3 {[%clk
0:00:52.7]} 54. Nb4+ {[%clk 0:00:25.5]} 54... Ke6 {[%clk 0:00:42.6]} 55. Nc6
{[%clk 0:00:25.9]} 55... Bb6 {[%clk 0:00:43.1]} 56. Nb4 {[%clk 0:00:27.1]} 56...
Bc5 {[%clk 0:00:43.8]} 57. Nd3 {[%clk 0:00:28.3]} 57... Bb6 {[%clk 0:00:43.4]}
58. Nb2 {[%clk 0:00:29.4]} 58... Kd5 {[%clk 0:00:44.3]} 59. Na4 {[%clk
0:00:30.5]} 59... Bd4 {[%clk 0:00:43.6]} 60. b6 {[%clk 0:00:31.9]} 60... Kc6
{[%clk 0:00:40.3]} 61. e6 {[%clk 0:00:32.9]} 61... Bf6 {[%clk 0:00:41.4]} 62.
Ke2 {[%clk 0:00:34.2]} 62... Be7 {[%clk 0:00:30.2]} 63. Kd3 {[%clk 0:00:35.2]}
63... Kd5 {[%clk 0:00:30.8]} 64. b7 {[%clk 0:00:34.8]} 64... Bd6 {[%clk
0:00:32.3]} 65. Nb6+ {[%clk 0:00:35.6]} 65... Kxe6 {[%clk 0:00:33.3]} 66. Nc8
{[%clk 0:00:35.9]} 66... Bb8 {[%clk 0:00:31.6]} 67. Kd4 {[%clk 0:00:37.1]} 67...
Kd7 {[%clk 0:00:29.1]} 68. Kd5 {[%clk 0:00:38.5]} 68... Bc7 {[%clk 0:00:18.6]}
69. Na7 {[%clk 0:00:38.3]} 69... Bxf4 {[%clk 0:00:18.1]} 70. Nc6 {[%clk
0:00:37]} 70... Bxg3 {[%clk 0:00:15.9]} 71. hxg3 {[%clk 0:00:37.9]} 71... h2
{[%clk 0:00:17.4]} 72. b8=Q {[%clk 0:00:39.3]} 72... h1=Q+ {[%clk 0:00:19.3]}
73. Kc5 {[%clk 0:00:40.5]} 73... Qxc6+ {[%clk 0:00:20.8]} 74. Kd4 {[%clk
0:00:41.5]} 74... Qd6+ {[%clk 0:00:22.2]} 75. Qxd6+ {[%clk 0:00:42.2]} 75...
Kxd6 {[%clk 0:00:24.1]} 76. Ke3 {[%clk 0:00:43.8]} 76... Ke5 {[%clk 0:00:24.8]}
77. Ke2 {[%clk 0:00:45]} 77... Ke4 {[%clk 0:00:25.9]} 78. Kf2 {[%clk 0:00:46.6]}
78... Kd3 {[%clk 0:00:26.3]} 79. Kf1 {[%clk 0:00:47.7]} 79... Ke3 {[%clk
0:00:25.1]} 80. Kg2 {[%clk 0:00:48.9]} 80... Ke2 {[%clk 0:00:25.8]} 81. Kh2
{[%clk 0:00:50.1]} 81... Kf2 {[%clk 0:00:26.6]} 0-1

[Event "*** MasterClass Titled Tuesday Blitz"]
[Site "Chess.com"]
[Date "2017.07.04"]
[Round "1"]
[White "Alexander_Donchenko"]
[Black "AllStarShark"]
[Result "1-0"]
[WhiteElo "2576"]
[BlackElo "2298"]
[TimeControl "180+2"]
[EndTime "13:13:56 PDT"]
[Termination "Alexander_Donchenko won by checkmate"]

1. d4 {[%clk 0:03:01.9]} 1... d5 {[%clk 0:02:59.7]} 2. c4 {[%clk 0:03:03.3]}
2... dxc4 {[%clk 0:03:00.2]} 3. e3 {[%clk 0:03:03.9]} 3... e5 {[%clk 0:02:59.9]}
4. Bxc4 {[%clk 0:03:04.9]} 4... exd4 {[%clk 0:03:00.5]} 5. exd4 {[%clk
0:03:06.8]} 5... Bd6 {[%clk 0:03:00.6]} 6. Nf3 {[%clk 0:03:07.6]} 6... Nf6
{[%clk 0:03:00.1]} 7. Qe2+ {[%clk 0:03:08.9]} 7... Qe7 {[%clk 0:02:59.4]} 8.
Qxe7+ {[%clk 0:03:09.5]} 8... Bxe7 {[%clk 0:02:59.5]} 9. Nc3 {[%clk 0:03:10.3]}
9... c6 {[%clk 0:02:59.5]} 10. O-O {[%clk 0:03:10.8]} 10... O-O {[%clk
0:02:49.6]} 11. Re1 {[%clk 0:03:11.7]} 11... Bd6 {[%clk 0:02:47.5]} 12. Bg5
{[%clk 0:03:11]} 12... Nbd7 {[%clk 0:02:46.8]} 13. Ne5 {[%clk 0:03:11.8]} 13...
h6 {[%clk 0:02:43.1]} 14. Bh4 {[%clk 0:03:12.4]} 14... Nb6 {[%clk 0:02:32.5]}
15. Bb3 {[%clk 0:03:09.9]} 15... Nbd5 {[%clk 0:02:22.5]} 16. Bg3 {[%clk
0:02:40.6]} 16... Bxe5 {[%clk 0:01:38.2]} 17. dxe5 {[%clk 0:02:38.3]} 17... Nxc3
{[%clk 0:01:29.3]} 18. exf6 {[%clk 0:02:39.2]} 18... Nd5 {[%clk 0:01:27]} 19.
fxg7 {[%clk 0:02:38.8]} 19... Kxg7 {[%clk 0:01:28.9]} 20. Be5+ {[%clk
0:02:37.2]} 20... f6 {[%clk 0:01:25]} 21. Bd4 {[%clk 0:02:38.4]} 21... Bd7
{[%clk 0:01:23.8]} 22. Rac1 {[%clk 0:02:36.6]} 22... Rac8 {[%clk 0:01:09.9]} 23.
Bxa7 {[%clk 0:02:35.6]} 23... Rfe8 {[%clk 0:01:05.3]} 24. Bd4 {[%clk 0:02:33.9]}
24... Rxe1+ {[%clk 0:01:04]} 25. Rxe1 {[%clk 0:02:35.8]} 25... Re8 {[%clk
0:01:04.3]} 26. Kf1 {[%clk 0:02:35.1]} 26... b6 {[%clk 0:00:53.5]} 27. Rxe8
{[%clk 0:02:25.5]} 27... Bxe8 {[%clk 0:00:55.4]} 28. g3 {[%clk 0:02:03.1]} 28...
Kg6 {[%clk 0:00:50.7]} 29. Ke2 {[%clk 0:02:02.5]} 29... Kf5 {[%clk 0:00:48]} 30.
a3 {[%clk 0:01:59.7]} 30... b5 {[%clk 0:00:43.7]} 31. Bc2+ {[%clk 0:01:58.1]}
31... Ke6 {[%clk 0:00:42.7]} 32. Kf3 {[%clk 0:01:58]} 32... h5 {[%clk
0:00:41.8]} 33. h4 {[%clk 0:01:57]} 33... f5 {[%clk 0:00:28.3]} 34. Bc5 {[%clk
0:01:54.8]} 34... Ke5 {[%clk 0:00:27.1]} 35. Ke2 {[%clk 0:01:52.9]} 35... f4
{[%clk 0:00:25.2]} 36. Ba7 {[%clk 0:01:45.5]} 36... fxg3 {[%clk 0:00:24.8]} 37.
fxg3 {[%clk 0:01:46.1]} 37... Bd7 {[%clk 0:00:22.1]} 38. Bg6 {[%clk 0:01:40.3]}
38... Bg4+ {[%clk 0:00:21.7]} 39. Kd2 {[%clk 0:01:41]} 39... Ne7 {[%clk
0:00:19.5]} 40. Be8 {[%clk 0:01:38.7]} 40... Nf5 {[%clk 0:00:19.4]} 41. Kc3
{[%clk 0:01:36.1]} 41... Kd5 {[%clk 0:00:19.7]} 42. Bb8 {[%clk 0:01:34.5]} 42...
Ne3 {[%clk 0:00:16.7]} 43. b3 {[%clk 0:01:27.5]} 43... Nd1+ {[%clk 0:00:16.6]}
44. Kd2 {[%clk 0:01:27.9]} 44... Nf2 {[%clk 0:00:16.9]} 45. Bf7+ {[%clk
0:01:24.9]} 45... Ke4 {[%clk 0:00:16.1]} 46. Bg6+ {[%clk 0:01:23.5]} 46... Kd5
{[%clk 0:00:15.5]} 47. Bf7+ {[%clk 0:01:19.5]} 47... Ke4 {[%clk 0:00:16]} 48. a4
{[%clk 0:01:20.7]} 48... bxa4 {[%clk 0:00:16.3]} 49. bxa4 {[%clk 0:01:22.6]}
49... Kd4 {[%clk 0:00:11.9]} 50. a5 {[%clk 0:01:17]} 50... Ne4+ {[%clk
0:00:11.6]} 51. Kc2 {[%clk 0:01:18]} 51... Be2 {[%clk 0:00:10.4]} 52. Be6 {[%clk
0:01:10.4]} 52... c5 {[%clk 0:00:10.5]} 53. Bc8 {[%clk 0:01:09.3]} 53... Ke3
{[%clk 0:00:11.2]} 54. a6 {[%clk 0:01:09]} 54... Bxa6 {[%clk 0:00:11.7]} 55.
Bxa6 {[%clk 0:01:09.4]} 55... Kf2 {[%clk 0:00:10.9]} 56. Kd3 {[%clk 0:00:33.6]}
56... Nxg3 {[%clk 0:00:10.6]} 57. Bc8 {[%clk 0:00:34.8]} 57... Kf3 {[%clk
0:00:09.9]} 58. Kc4 {[%clk 0:00:32.6]} 58... Ne4 {[%clk 0:00:09.9]} 59. Be5
{[%clk 0:00:32.5]} 59... Nd2+ {[%clk 0:00:07.3]} 60. Kxc5 {[%clk 0:00:32.6]}
60... Ke4 {[%clk 0:00:09]} 61. Bf6 {[%clk 0:00:33.4]} 61... Nf3 {[%clk
0:00:10.1]} 62. Kd6 {[%clk 0:00:31.9]} 62... Kf4 {[%clk 0:00:10.5]} 63. Ke6
{[%clk 0:00:31.9]} 63... Kg3 {[%clk 0:00:09.2]} 64. Kf5 {[%clk 0:00:32.4]} 64...
Nxh4+ {[%clk 0:00:10.1]} 65. Kg5 {[%clk 0:00:34]} 65... Nf3+ {[%clk 0:00:10.6]}
66. Kxh5 {[%clk 0:00:35.6]} 66... Kf4 {[%clk 0:00:11.5]} 67. Kg6 {[%clk
0:00:34.9]} 67... Ne5+ {[%clk 0:00:11.6]} 68. Kg7 {[%clk 0:00:34.1]} 68... Ng4
{[%clk 0:00:11]} 69. Bd8 {[%clk 0:00:34.1]} 69... Ne5 {[%clk 0:00:10]} 70. Kf6
{[%clk 0:00:33.3]} 70... Ng4+ {[%clk 0:00:08.4]} 71. Ke6 {[%clk 0:00:34.9]}
71... Ke4 {[%clk 0:00:08.3]} 72. Bc7 {[%clk 0:00:34.7]} 72... Ne3 {[%clk
0:00:08.5]} 73. Bb7+ {[%clk 0:00:35.6]} 73... Kd3 {[%clk 0:00:07.5]} 74. Bb6
{[%clk 0:00:34.7]} 74... Nc4 {[%clk 0:00:06.9]} 75. Bg1 {[%clk 0:00:35.1]} 75...
Ne3 {[%clk 0:00:06.8]} 76. Ke5 {[%clk 0:00:30.3]} 76... Ke2 {[%clk 0:00:07.4]}
77. Ke4 {[%clk 0:00:28.7]} 77... Nc2 {[%clk 0:00:07.4]} 78. Ba6+ {[%clk
0:00:28.4]} 78... Kd2 {[%clk 0:00:07.8]} 79. Bc5 {[%clk 0:00:27.7]} 79... Kc3
{[%clk 0:00:09.7]} 80. Bb5 {[%clk 0:00:25.8]} 80... Nb4 {[%clk 0:00:10.1]} 81.
Bd4+ {[%clk 0:00:26.6]} 81... Kb3 {[%clk 0:00:09.9]} 82. Bf6 {[%clk 0:00:23.3]}
82... Nc2 {[%clk 0:00:06.9]} 83. Kd3 {[%clk 0:00:23.7]} 83... Nb4+ {[%clk
0:00:07.5]} 84. Kd4 {[%clk 0:00:22.2]} 84... Nc2+ {[%clk 0:00:07.3]} 85. Kc5
{[%clk 0:00:23.4]} 85... Ne3 {[%clk 0:00:07.2]} 86. Bd3 {[%clk 0:00:23.2]} 86...
Nc2 {[%clk 0:00:06.8]} 87. Bc4+ {[%clk 0:00:23]} 87... Ka4 {[%clk 0:00:05.3]}
88. Bc3 {[%clk 0:00:18.4]} 88... Na3 {[%clk 0:00:04.4]} 89. Ba2 {[%clk
0:00:13.4]} 89... Nb5 {[%clk 0:00:04.8]} 90. Be5 {[%clk 0:00:13.9]} 90... Nc3
{[%clk 0:00:03.4]} 91. Bxc3 {[%clk 0:00:13.7]} 91... Ka3 {[%clk 0:00:05.3]} 92.
Bc4 {[%clk 0:00:14]} 92... Ka4 {[%clk 0:00:06]} 93. Bb5+ {[%clk 0:00:11.1]}
93... Ka3 {[%clk 0:00:07.9]} 94. Bb4+ {[%clk 0:00:11.6]} 94... Kb3 {[%clk
0:00:09.8]} 95. Ba5 {[%clk 0:00:12.7]} 95... Ka2 {[%clk 0:00:10.8]} 96. Kb4
{[%clk 0:00:12.6]} 96... Kb2 {[%clk 0:00:12.7]} 97. Ba4 {[%clk 0:00:13.9]} 97...
Kc1 {[%clk 0:00:12.6]} 98. Kc3 {[%clk 0:00:14.9]} 98... Kb1 {[%clk 0:00:13.2]}
99. Bc2+ {[%clk 0:00:12.5]} 99... Kc1 {[%clk 0:00:13.2]} 100. Bb3 {[%clk
0:00:13.2]} 100... Kb1 {[%clk 0:00:13.8]} 101. Bb6 {[%clk 0:00:14.2]} 101... Kc1
{[%clk 0:00:14.5]} 102. Be3+ {[%clk 0:00:15.3]} 102... Kb1 {[%clk 0:00:15.4]}
103. Kb4 {[%clk 0:00:16.4]} 103... Kb2 {[%clk 0:00:15.9]} 104. Bd2 {[%clk
0:00:17.3]} 104... Kb1 {[%clk 0:00:15.9]} 105. Ka3 {[%clk 0:00:17.8]} 105... Ka1
{[%clk 0:00:16.3]} 106. Bc4 {[%clk 0:00:18.9]} 106... Kb1 {[%clk 0:00:16.9]}
107. Bd3+ {[%clk 0:00:20.3]} 107... Ka1 {[%clk 0:00:17.4]} 108. Bc3# {[%clk
0:00:21.8]} 1-0

[Event "*** MasterClass Titled Tuesday Blitz"]
[Site "Chess.com"]
[Date "2017.07.04"]
[Round "1"]
[White "Goala"]
[Black "jcibarra"]
[Result "1/2-1/2"]
[WhiteElo "2330"]
[BlackElo "2657"]
[TimeControl "180+2"]
[EndTime "13:14:20 PDT"]
[Termination "Game drawn by 50-move rule"]

1. d4 {[%clk 0:03:01.9]} 1... d6 {[%clk 0:02:59.4]} 2. c4 {[%clk 0:03:02.8]}
2... e5 {[%clk 0:03:00]} 3. Nf3 {[%clk 0:03:02.1]} 3... e4 {[%clk 0:03:01]} 4.
Nfd2 {[%clk 0:03:02.1]} 4... f5 {[%clk 0:03:00.3]} 5. g3 {[%clk 0:02:57.4]} 5...
Nf6 {[%clk 0:02:59.6]} 6. Bg2 {[%clk 0:02:55.8]} 6... c6 {[%clk 0:03:00.4]} 7.
d5 {[%clk 0:02:47.7]} 7... Na6 {[%clk 0:02:55.5]} 8. O-O {[%clk 0:02:39]} 8...
Be7 {[%clk 0:02:56.4]} 9. dxc6 {[%clk 0:02:35.8]} 9... bxc6 {[%clk 0:02:56.8]}
10. f3 {[%clk 0:02:37.3]} 10... d5 {[%clk 0:02:54.2]} 11. cxd5 {[%clk
0:02:35.7]} 11... cxd5 {[%clk 0:02:55.4]} 12. Nb3 {[%clk 0:02:36.1]} 12... O-O
{[%clk 0:02:53.6]} 13. Bf4 {[%clk 0:02:34.3]} 13... Nc5 {[%clk 0:02:49]} 14. Nc3
{[%clk 0:02:26.7]} 14... Nxb3 {[%clk 0:02:44.6]} 15. Qxb3 {[%clk 0:02:28.6]}
15... Kh8 {[%clk 0:02:37.7]} 16. Rfd1 {[%clk 0:02:29.4]} 16... Be6 {[%clk
0:02:36.8]} 17. fxe4 {[%clk 0:02:20.9]} 17... fxe4 {[%clk 0:02:37.5]} 18. Nxe4
{[%clk 0:02:21.5]} 18... Nxe4 {[%clk 0:02:30.6]} 19. Bxe4 {[%clk 0:02:21.2]}
19... Bc5+ {[%clk 0:02:17.8]} 20. Kh1 {[%clk 0:02:19.7]} 20... Qe8 {[%clk
0:02:01.1]} 21. Bxd5 {[%clk 0:02:14.5]} 21... Bxd5+ {[%clk 0:02:01.3]} 22. Qxd5
{[%clk 0:02:13]} 22... Be3 {[%clk 0:01:53.6]} 23. Qf3 {[%clk 0:02:04.4]} 23...
Bb6 {[%clk 0:01:40.4]} 24. e4 {[%clk 0:01:52.3]} 24... Rc8 {[%clk 0:01:39.9]}
25. Rac1 {[%clk 0:01:32.8]} 25... Rxc1 {[%clk 0:01:29.2]} 26. Rxc1 {[%clk
0:01:33]} 26... Qe6 {[%clk 0:01:27.6]} 27. a3 {[%clk 0:01:30.4]} 27... g5 {[%clk
0:01:23.5]} 28. Qc3+ {[%clk 0:01:30.9]} 28... Kg8 {[%clk 0:01:24]} 29. Qe5
{[%clk 0:01:18.4]} 29... Qxe5 {[%clk 0:01:11.6]} 30. Bxe5 {[%clk 0:01:20.3]}
30... Re8 {[%clk 0:01:12.5]} 31. Bc7 {[%clk 0:01:06.7]} 31... Rxe4 {[%clk
0:00:56]} 32. Bxb6 {[%clk 0:01:07.3]} 32... axb6 {[%clk 0:00:57.9]} 33. Rc8+
{[%clk 0:01:08.2]} 33... Kf7 {[%clk 0:00:58.6]} 34. Rc7+ {[%clk 0:01:09.3]}
34... Kg6 {[%clk 0:00:56.9]} 35. Rc6+ {[%clk 0:01:03.5]} 35... Kf5 {[%clk
0:00:58.1]} 36. Rxb6 {[%clk 0:01:04.1]} 36... Re2 {[%clk 0:00:54.7]} 37. Rb4
{[%clk 0:01:01.7]} 37... h5 {[%clk 0:00:52.5]} 38. h3 {[%clk 0:00:54.9]} 38...
Rc2 {[%clk 0:00:47.8]} 39. g4+ {[%clk 0:00:51.7]} 39... hxg4 {[%clk 0:00:46.7]}
40. hxg4+ {[%clk 0:00:53.6]} 40... Ke5 {[%clk 0:00:48.6]} 41. Kg1 {[%clk
0:00:50.4]} 41... Kd5 {[%clk 0:00:48.3]} 42. Kf1 {[%clk 0:00:51.3]} 42... Kc5
{[%clk 0:00:49.6]} 43. Ke1 {[%clk 0:00:50.3]} 43... Rg2 {[%clk 0:00:49.3]} 44.
Kd1 {[%clk 0:00:50.7]} 44... Rf2 {[%clk 0:00:50.8]} 45. Kc1 {[%clk 0:00:51.6]}
45... Kc6 {[%clk 0:00:41.3]} 46. Kd1 {[%clk 0:00:50.4]} 46... Kc5 {[%clk
0:00:42.3]} 47. Ke1 {[%clk 0:00:51]} 47... Rg2 {[%clk 0:00:43.1]} 48. Kf1 {[%clk
0:00:51.5]} 48... Rc2 {[%clk 0:00:41.6]} 49. Rb8 {[%clk 0:00:52]} 49... Kd4
{[%clk 0:00:42.4]} 50. a4 {[%clk 0:00:47.6]} 50... Ke3 {[%clk 0:00:42.1]} 51.
Rb3+ {[%clk 0:00:45.8]} 51... Kf4 {[%clk 0:00:42.1]} 52. a5 {[%clk 0:00:46.5]}
52... Kxg4 {[%clk 0:00:29.7]} 53. a6 {[%clk 0:00:46.6]} 53... Rc8 {[%clk
0:00:26.6]} 54. a7 {[%clk 0:00:46.6]} 54... Ra8 {[%clk 0:00:27.8]} 55. Ra3
{[%clk 0:00:47.5]} 55... Kf5 {[%clk 0:00:28.9]} 56. Ra6 {[%clk 0:00:21.1]} 56...
Ke4 {[%clk 0:00:25.9]} 57. Kg2 {[%clk 0:00:15.9]} 57... Kd5 {[%clk 0:00:26.6]}
58. Kg3 {[%clk 0:00:16.7]} 58... Kc5 {[%clk 0:00:28]} 59. Kg4 {[%clk 0:00:17.2]}
59... Kb5 {[%clk 0:00:29.5]} 60. Ra3 {[%clk 0:00:16.4]} 60... Kb6 {[%clk
0:00:30.7]} 61. Kxg5 {[%clk 0:00:16.5]} 61... Rxa7 {[%clk 0:00:32.2]} 62. Rb3+
{[%clk 0:00:12.3]} 62... Kc5 {[%clk 0:00:31.5]} 63. Kf4 {[%clk 0:00:10.8]} 63...
Re7 {[%clk 0:00:32.2]} 64. Rb8 {[%clk 0:00:09.2]} 64... Kc4 {[%clk 0:00:31.6]}
65. Rc8+ {[%clk 0:00:09.3]} 65... Kb5 {[%clk 0:00:32]} 66. Rb8+ {[%clk 0:00:10]}
66... Kc4 {[%clk 0:00:33.1]} 67. Rc8+ {[%clk 0:00:10.8]} 67... Kb5 {[%clk
0:00:34.5]} 68. Rb8+ {[%clk 0:00:11.8]} 68... Kc6 {[%clk 0:00:36]} 69. Rc8+
{[%clk 0:00:12.4]} 69... Kb7 {[%clk 0:00:36.8]} 70. Rc2 {[%clk 0:00:13.6]} 70...
Kb6 {[%clk 0:00:38.1]} 71. Kf5 {[%clk 0:00:14.5]} 71... Kb5 {[%clk 0:00:39.3]}
72. Kf6 {[%clk 0:00:15.6]} 72... Re1 {[%clk 0:00:40]} 73. Rd2 {[%clk 0:00:16]}
73... Kc4 {[%clk 0:00:40.8]} 74. Kf5 {[%clk 0:00:17.1]} 74... Kb3 {[%clk
0:00:41.8]} 75. Rf2 {[%clk 0:00:17.3]} 75... Re8 {[%clk 0:00:41.9]} 76. Kf4
{[%clk 0:00:18]} 76... Re7 {[%clk 0:00:42.5]} 77. Kg3 {[%clk 0:00:19.9]} 77...
Re8 {[%clk 0:00:42]} 78. Rf3+ {[%clk 0:00:21.8]} 78... Kxb2 {[%clk 0:00:42.8]}
79. Rf2+ {[%clk 0:00:23.7]} 79... Kc3 {[%clk 0:00:44]} 80. Rf3+ {[%clk
0:00:25.6]} 80... Kd2 {[%clk 0:00:45.5]} 81. Rf7 {[%clk 0:00:26.4]} 81... Ke3
{[%clk 0:00:45.6]} 82. Rf3+ {[%clk 0:00:26.3]} 82... Ke4 {[%clk 0:00:45.2]} 83.
Rf4+ {[%clk 0:00:27]} 83... Ke5 {[%clk 0:00:46.4]} 84. Rf2 {[%clk 0:00:27.5]}
84... Rg8+ {[%clk 0:00:47.3]} 85. Kf3 {[%clk 0:00:28.2]} 85... Ra8 {[%clk
0:00:48.3]} 86. Re2+ {[%clk 0:00:28.9]} 86... Kf5 {[%clk 0:00:49.8]} 87. Re3
{[%clk 0:00:29.8]} 87... Rh8 {[%clk 0:00:50.5]} 88. Re2 {[%clk 0:00:30]} 88...
Rh3+ {[%clk 0:00:50.8]} 89. Kg2 {[%clk 0:00:30.7]} 89... Ra3 {[%clk 0:00:52.7]}
90. Rb2 {[%clk 0:00:31.2]} 90... Ra4 {[%clk 0:00:53.3]} 91. Rb5+ {[%clk
0:00:31.7]} 91... Kg4 {[%clk 0:00:54.5]} 92. Rb2 {[%clk 0:00:33.6]} 92... Rc4
{[%clk 0:00:55.3]} 93. Rd2 {[%clk 0:00:33.8]} 93... Re4 {[%clk 0:00:56.1]} 94.
Rb2 {[%clk 0:00:33.8]} 94... Kh4 {[%clk 0:00:57.2]} 95. Rc2 {[%clk 0:00:33]}
95... Rf4 {[%clk 0:00:57.7]} 96. Rb2 {[%clk 0:00:32.5]} 96... Kg4 {[%clk
0:00:59]} 97. Rc2 {[%clk 0:00:32.8]} 97... Rb4 {[%clk 0:01:00.4]} 98. Rd2 {[%clk
0:00:33.1]} 98... Rb3 {[%clk 0:01:01.6]} 99. Rc2 {[%clk 0:00:33.5]} 99... Rg3+
{[%clk 0:01:02.1]} 100. Kf2 {[%clk 0:00:33.8]} 100... Kh3 {[%clk 0:01:03.5]}
101. Ke1 {[%clk 0:00:33.2]} 101... Rd3 {[%clk 0:01:03.2]} 102. Ke2 {[%clk
0:00:33.5]} 102... Rd5 {[%clk 0:01:03.6]} 103. Rc8 {[%clk 0:00:33.5]} 103... Kg3
{[%clk 0:01:04.7]} 104. Ke3 {[%clk 0:00:33.8]} 104... Re5+ {[%clk 0:01:05.3]}
105. Kd4 {[%clk 0:00:34.6]} 105... Re1 {[%clk 0:01:06.4]} 106. Rg8+ {[%clk
0:00:35]} 106... Kf4 {[%clk 0:01:07.4]} 107. Rf8+ {[%clk 0:00:35.4]} 107... Kg5
{[%clk 0:01:08.9]} 108. Rg8+ {[%clk 0:00:37.3]} 108... Kf6 {[%clk 0:01:10.3]}
109. Rg2 {[%clk 0:00:37.9]} 109... Rd1+ {[%clk 0:01:10.3]} 110. Ke3 {[%clk
0:00:38.3]} 110... Rd5 {[%clk 0:01:11.4]} 111. Rf2+ {[%clk 0:00:38.8]} 111...
Ke5 {[%clk 0:01:12.9]} 112. Ra2 {[%clk 0:00:39.6]} 112... Rb5 {[%clk 0:01:13.8]}
113. Ra3 {[%clk 0:00:39.8]} 113... Rc5 {[%clk 0:01:11.2]} 114. Rb3 {[%clk
0:00:40.1]} 114... Ra5 {[%clk 0:01:11.6]} 115. Rc3 {[%clk 0:00:40.6]} 115... Kd5
{[%clk 0:01:12.9]} 116. Rd3+ {[%clk 0:00:41]} 116... Kc4 {[%clk 0:01:14.3]} 117.
Rd4+ {[%clk 0:00:41.4]} 117... Kc5 {[%clk 0:01:15.6]} 118. Rd8 {[%clk
0:00:42.4]} 118... Ra6 {[%clk 0:01:15.9]} 119. Re8 {[%clk 0:00:42.3]} 119... Ra1
{[%clk 0:01:16]} 120. Kd2 {[%clk 0:00:43]} 120... Kd4 {[%clk 0:01:15.6]} 121.
Rd8+ {[%clk 0:00:43.5]} 121... Kc5 {[%clk 0:01:17.1]} 122. Rh8 {[%clk
0:00:44.9]} 122... Ra6 {[%clk 0:01:16.6]} 123. Kc3 {[%clk 0:00:45.2]} 123... Rd6
{[%clk 0:01:16.7]} 124. Rh5+ {[%clk 0:00:44.9]} 124... Kc6 {[%clk 0:01:18]} 125.
Rh7 {[%clk 0:00:45.4]} 125... Rd7 {[%clk 0:01:18.7]} 126. Rh6+ {[%clk
0:00:45.4]} 126... Kc5 {[%clk 0:01:19.4]} 127. Rh5+ {[%clk 0:00:45.8]} 127...
Kc6 {[%clk 0:01:20.6]} 128. Kc4 {[%clk 0:00:45.9]} 128... Rd6 {[%clk 0:01:21.1]}
129. Rc5+ {[%clk 0:00:46.4]} 129... Kb6 {[%clk 0:01:22]} 130. Rh5 {[%clk
0:00:48.3]} 130... Rg6 {[%clk 0:01:22.2]} 131. Rf5 {[%clk 0:00:48.1]} 131...
Rg4+ {[%clk 0:01:23.3]} 132. Kd3 {[%clk 0:00:48.9]} 132... Rb4 {[%clk
0:01:23.1]} 133. Rf6+ {[%clk 0:00:49.6]} 133... Ka5 {[%clk 0:01:24.1]} 134. Kc3
{[%clk 0:00:49.6]} 134... Rb6 {[%clk 0:01:25.2]} 135. Rf5+ {[%clk 0:00:49.9]}
135... Ka4 {[%clk 0:01:25.8]} 136. Rf8 {[%clk 0:00:48.9]} 136... Rc6+ {[%clk
0:01:26.4]} 137. Kd4 {[%clk 0:00:49.5]} 137... Kb5 {[%clk 0:01:27.3]} 138. Rb8+
{[%clk 0:00:49.6]} 1/2-1/2